fUSD/lending_fUSD_20240412
["ID","MTS","AMOUNT","RATE_DAILY","PERIOD"]
[322297543,1712940639698,-500.0,0.00046849,31]
[322297545,1712940639707,-300.0,0.00046849,7]
[322297547,1712940639718,-500.0,0.00046849,31]
[322297549,1712940639727,-500.0,0.00046849,31]
[322297551,1712940639736,-500.0,0.00046849,31]
[322297553,1712940639746,-500.0,0.00046849,31]
[322297555,1712940639755,-500.0,0.00046849,31]
[322297557,1712940639764,-500.0,0.00046849,31]
[322297559,1712940639773,-500.0,0.00046849,31]
[322297561,1712940639783,-498.87772334,0.00046849,31]
[322297563,1712940639792,-500.0,0.00046849,31]
[322297565,1712940639801,-500.0,0.00046849,31]
[322297567,1712940639810,-500.0,0.00046849,31]
[322297569,1712940639819,-500.0,0.00046849,31]
[322297571,1712940639828,-500.0,0.00046849,31]
[322297573,1712940639837,-500.0,0.00046849,31]
[322297575,1712940639846,-546.65495616,0.00046849,31]
[322297576,1712940639855,-500.0,0.00046849,31]
[322297578,1712940639866,-500.0,0.00046849,31]
[322297580,1712940639876,-500.0,0.00046849,31]
[322297582,1712940639885,-630.14,0.00046849,31]
[322297584,1712940639895,-500.0,0.00046849,31]
[322297586,1712940639904,-642.73,0.00046849,31]
[322297588,1712940639914,-500.0,0.00046849,31]
[322297590,1712940639923,-500.0,0.00046849,31]
[322297592,1712940639934,-500.0,0.00046849,31]
[322297594,1712940639946,-500.0,0.00046849,31]
[322297596,1712940639957,-500.0,0.00046849,31]
[322297598,1712940639966,-265.77117395,0.00046849,31]
[322297600,1712940639976,-504.38,0.00046849,31]
[322297602,1712940639985,-500.0,0.00046849,31]
[322297604,1712940639995,-434.0428835,0.00046849,31]
[322297606,1712940640004,-500.0,0.00046849,31]
[322297608,1712940640014,-500.0,0.00046849,31]
[322297610,1712940640023,-500.0,0.00046849,31]
[322297612,1712940640033,-500.0,0.00046849,31]
[322297614,1712940640042,-500.0,0.00046849,31]
[322297616,1712940640051,-500.0,0.00046849,31]
[322297618,1712940640061,-500.0,0.00046849,31]
[322297620,1712940640070,-500.0,0.00046849,31]
[322297622,1712940640080,-631.97,0.00046849,31]
[322297624,1712940640089,-500.0,0.00046849,31]
[322297626,1712940640099,-500.0,0.00046849,31]
[322297628,1712940640109,-500.0,0.00046849,31]
[322297630,1712940640118,-500.0,0.00046849,31]
[322297632,1712940640127,-500.0,0.00046849,31]
[322297634,1712940640137,-500.0,0.00046849,31]
[322297636,1712940640146,-150.0,0.00046849,31]
[322297638,1712940640155,-500.0,0.00046849,31]
[322297640,1712940640165,-500.0,0.00046849,31]
[322297642,1712940640174,-500.0,0.00046849,31]
[322297644,1712940640184,-500.0,0.00046849,31]
[322297647,1712940640195,-294.68014981,0.00046849,31]
[322297649,1712940640206,-500.0,0.00046849,31]
[322297651,1712940640219,-500.0,0.00046849,31]
[322297653,1712940640228,-500.0,0.00046849,31]
[322297655,1712940640237,-500.0,0.00046849,31]
[322297657,1712940640247,-500.0,0.00046849,31]
[322297659,1712940640256,-500.0,0.00046849,31]
[322297661,1712940640265,-500.0,0.00046849,31]
[322297664,1712940640275,-500.0,0.00046849,31]
[322297667,1712940640284,-500.0,0.00046849,31]
[322297669,1712940640292,-966.79,0.00046849,31]
[322297671,1712940640301,-500.0,0.00046849,31]
[322297672,1712940640311,-500.0,0.00046849,31]
[322297675,1712940640321,-249.01,0.00046849,31]
[322297676,1712940640329,-604.9,0.00046849,31]
[322297679,1712940640340,-500.0,0.00046849,31]
[322297681,1712940640349,-500.0,0.00046849,31]
[322297682,1712940640358,-500.0,0.00046849,31]
[322297685,1712940640368,-500.0,0.00046849,31]
[322297687,1712940640377,-500.0,0.00046849,31]
[322297689,1712940640387,-616.4180905,0.00046849,31]
[322297691,1712940640396,-500.0,0.00046849,31]
[322297692,1712940640405,-500.0,0.00046849,31]
[322297694,1712940640414,-500.0,0.00046849,31]
[322297696,1712940640423,-500.0,0.00046849,31]
[322297698,1712940640432,-500.0,0.00046849,31]
[322297700,1712940640442,-500.0,0.00046849,31]
[322297702,1712940640451,-500.0,0.00046849,31]
[322297704,1712940640463,-500.0,0.00046849,31]
[322297706,1712940640472,-692.15,0.00046849,31]
[322297708,1712940640481,-500.0,0.00046849,31]
[322297710,1712940640490,-1217.05,0.00046849,31]
[322297712,1712940640499,-500.0,0.00046849,31]
[322297714,1712940640508,-500.0,0.00046849,31]
[322297716,1712940640517,-500.0,0.00047123,31]
[322297719,1712940640527,-485.0,0.00047123,31]
[322297721,1712940640537,-500.0,0.00047123,31]
[322297722,1712940640547,-481.52,0.00047123,31]
[322297725,1712940640557,-500.0,0.00047123,31]
[322297727,1712940640566,-500.0,0.00047123,31]
[322297728,1712940640576,-500.0,0.00047123,31]
[322297731,1712940640586,-500.0,0.00047123,31]
[322297733,1712940640596,-179.6,0.00047123,31]
[322297734,1712940640604,-500.0,0.00047123,31]
[322297736,1712940640614,-500.0,0.00047123,31]
[322297738,1712940640623,-225.63,0.00047123,31]
[322297740,1712940640632,-500.0,0.00047123,31]
[322297742,1712940640641,-194.62,0.00047123,31]
[322297744,1712940640650,-500.0,0.00047123,31]
[322297746,1712940640660,-500.0,0.00047123,31]
[322297748,1712940640669,-500.0,0.00047123,31]
[322297751,1712940640679,-500.0,0.00047123,31]
[322297752,1712940640688,-500.0,0.00047123,31]
[322297754,1712940640697,-575.07,0.00047123,31]
[322297756,1712940640708,-500.0,0.00047123,31]
[322297758,1712940640718,-500.0,0.00047123,31]
[322297760,1712940640727,-345.06,0.00047123,31]
[322297762,1712940640736,-515.09,0.00047123,31]
[322297765,1712940640746,-500.0,0.00047123,31]
[322297766,1712940640755,-500.0,0.00047123,31]
[322297769,1712940640764,-500.0,0.00047123,31]
[322297771,1712940640773,-500.0,0.00047123,31]
[322297773,1712940640786,-500.0,0.00047123,31]
[322297775,1712940640795,-500.0,0.00047123,31]
[322297777,1712940640804,-430.24,0.00047123,31]
[322297779,1712940640813,-241.74,0.00047123,31]
[322297781,1712940640821,-500.0,0.00047123,31]
[322297783,1712940640831,-686.84,0.00047123,31]
[322297785,1712940640840,-500.0,0.00047123,31]
[322297787,1712940640849,-500.0,0.00047123,31]
[322297789,1712940640857,-500.0,0.00047123,31]
[322297791,1712940640869,-740.11,0.00047123,31]
[322297793,1712940640878,-500.0,0.00047123,31]
[322297795,1712940640887,-500.0,0.00047123,31]
[322297797,1712940640896,-1167.23,0.00047123,31]
[322297798,1712940640907,-500.0,0.00047123,31]
[322297801,1712940640916,-500.0,0.00047123,31]
[322297803,1712940640925,-500.0,0.00047123,31]
[322297804,1712940640935,-500.0,0.00047123,31]
[322297806,1712940640944,-500.0,0.00047123,31]
[322297808,1712940640954,-500.0,0.00047123,21]
[322297810,1712940640967,-500.0,0.00047123,31]
[322297812,1712940640976,-500.0,0.00047123,31]
[322297814,1712940640985,-633.38,0.00047123,31]
[322297816,1712940640993,-500.0,0.00047123,31]
[322297818,1712940641002,-500.0,0.00047123,31]
[322297820,1712940641012,-500.0,0.00047123,31]
[322297822,1712940641021,-500.0,0.00047123,31]
[322297824,1712940641030,-521.64,0.00047123,31]
[322297827,1712940641039,-500.0,0.00047123,31]
[322297828,1712940641048,-500.0,0.00047123,31]
[322297830,1712940641058,-500.0,0.00047123,31]
[322297833,1712940641067,-500.0,0.00047123,31]
[322297834,1712940641077,-500.0,0.00047123,2]
[322297836,1712940641086,-500.0,0.00047123,31]
[322297838,1712940641095,-500.0,0.00047123,31]
[322297841,1712940641105,-372.49380996,0.00047123,31]
[322297843,1712940641115,-349.5,0.00047123,31]
[322297844,1712940641123,-500.0,0.00047123,31]
[322297846,1712940641132,-327.15,0.00047123,31]
[322297848,1712940641141,-500.0,0.00047123,31]
[322297850,1712940641150,-557.93,0.00047123,31]
[322297852,1712940641159,-591.32,0.00047123,31]
[322297854,1712940641169,-304.5,0.00047123,31]
[322297856,1712940641178,-560.18,0.00047123,31]
[322297859,1712940641188,-500.0,0.00047123,31]
[322297860,1712940641197,-500.0,0.00047123,31]
[322297862,1712940641209,-500.0,0.00047123,31]
[322297864,1712940641219,-500.0,0.00047123,31]
[322297866,1712940641228,-500.0,0.00047123,31]
[322297869,1712940641238,-500.0,0.00047123,31]
[322297871,1712940641247,-500.0,0.00047123,31]
[322297872,1712940641257,-570.9,0.00047123,31]
[322297875,1712940641267,-500.0,0.00047123,31]
[322297877,1712940641276,-500.0,0.00047123,31]
[322297878,1712940641286,-500.0,0.00047123,31]
[322297880,1712940641295,-204.02,0.00047123,2]
[322297882,1712940641304,-469.34704286,0.00047123,31]
[322297884,1712940641312,-500.0,0.00047123,31]
[322297886,1712940641322,-500.0,0.00047123,31]
[322297889,1712940641331,-500.0,0.00047123,31]
[322297891,1712940641341,-500.0,0.00047123,31]
[322297893,1712940641350,-300.0,0.00047123,7]
[322297894,1712940641359,-600.9,0.00047123,31]
[322297897,1712940641369,-500.0,0.00047123,31]
[322297899,1712940641379,-500.0,0.00047123,31]
[322297901,1712940641388,-500.0,0.00047123,31]
[322297903,1712940641397,-500.0,0.00047123,31]
[322297905,1712940641407,-500.0,0.00047123,31]
[322297907,1712940641416,-500.0,0.00047123,31]
[322297909,1712940641425,-500.0,0.00047123,31]
[322297911,1712940641434,-500.0,0.00047123,31]
[322297913,1712940641443,-500.0,0.00047123,31]
[322297915,1712940641457,-500.0,0.00047123,31]
[322297923,1712940641600,-500.0,0.00047123,31]
[322297925,1712940641610,-500.0,0.00047123,31]
[322297927,1712940641619,-642.73,0.00047123,31]
[322297929,1712940641629,-500.0,0.00047123,31]
[322297931,1712940641638,-638.22,0.00047123,31]
[322297933,1712940641648,-500.0,0.00047123,31]
[322297936,1712940641657,-500.0,0.00047123,31]
[322297938,1712940641666,-556.49973588,0.00047123,31]
[322297940,1712940641676,-500.0,0.00047123,31]
[322297941,1712940641685,-500.0,0.00047123,31]
[322297943,1712940641695,-500.0,0.00047123,31]
[322297945,1712940641704,-500.0,0.00047123,31]
[322297948,1712940641719,-500.0,0.00047123,31]
[322297949,1712940641729,-500.0,0.00047123,31]
[322297951,1712940641738,-500.0,0.00047123,31]
[322297953,1712940641747,-500.0,0.00047123,31]
[322297955,1712940641756,-150.0,0.00047123,31]
[322297957,1712940641765,-500.0,0.00047123,31]
[322297959,1712940641775,-500.0,0.00047123,31]
[322297961,1712940641784,-500.0,0.00047123,31]
[322297964,1712940641795,-500.0,0.00047123,31]
[322297966,1712940641804,-506.02,0.00047123,31]
[322297968,1712940641813,-500.0,0.00047123,31]
[322297970,1712940641823,-500.0,0.00047123,31]
[322297972,1712940641832,-500.0,0.00047123,31]
[322297974,1712940641841,-966.79,0.00047123,31]
[322297976,1712940641850,-559.58,0.00047123,31]
[322297978,1712940641860,-500.0,0.00047123,31]
[322297980,1712940641873,-500.0,0.00047123,31]
[322297982,1712940641882,-500.0,0.00047123,31]
[322297984,1712940641892,-500.0,0.00047123,31]
[322297985,1712940641902,-500.0,0.00047123,31]
[322297988,1712940641912,-253.62,0.00047123,31]
[322297990,1712940641922,-500.0,0.00047123,31]
[322297991,1712940641932,-500.0,0.00047123,31]
[322297994,1712940641942,-500.0,0.00047123,31]
[322297996,1712940641952,-500.0,0.00047123,31]
[322297997,1712940641965,-500.0,0.00047123,31]
[322298000,1712940641975,-692.15,0.00047123,31]
[322298002,1712940641984,-321.46,0.00047123,31]
[322298004,1712940641993,-1217.05,0.00047123,31]
[322298006,1712940642003,-361.0,0.00047126,30]
[322298008,1712940642012,-248.98461865,0.00047183,2]
[322298010,1712940642021,-331.9172043,0.00047302,4]
[322298012,1712940642030,-500.0,0.00047397,31]
[322298014,1712940642040,-500.0,0.00047397,31]
[322298016,1712940642049,-496.85,0.00047397,31]
[322298018,1712940642058,-280.63681343,0.00047397,31]
[322298020,1712940642067,-500.0,0.00047397,31]
[322298022,1712940642077,-500.0,0.00047397,31]
[322298024,1712940642086,-500.0,0.00047397,31]
[322298026,1712940642095,-285.54460345,0.00047397,31]
[322298028,1712940642104,-500.0,0.00047397,31]
[322298030,1712940642113,-467.09,0.00047397,31]
[322298032,1712940642123,-629.79,0.00047397,31]
[322298034,1712940642132,-500.0,0.00047397,31]
[322298035,1712940642142,-154.05,0.00047397,31]
[322298037,1712940642151,-262.22,0.00047397,31]
[322298040,1712940642161,-500.0,0.00047397,31]
[322298042,1712940642170,-579.35,0.00047397,31]
[322298043,1712940642179,-286.56,0.00047397,31]
[322298046,1712940642189,-500.0,0.00047397,31]
[322298048,1712940642198,-500.0,0.00047397,31]
[322298050,1712940642210,-459.66,0.00047397,31]
[322298052,1712940642219,-334.25,0.00047397,31]
[322298054,1712940642229,-686.84,0.00047397,31]
[322298056,1712940642240,-500.0,0.00047397,31]
[322298058,1712940642249,-500.0,0.00047397,31]
[322298060,1712940642258,-500.0,0.00047397,31]
[322298062,1712940642267,-740.11,0.00047397,31]
[322298064,1712940642277,-500.0,0.00047397,31]
[322298066,1712940642286,-1167.23,0.00047397,31]
[322298068,1712940642295,-500.0,0.00047397,31]
[322298070,1712940642304,-218.02,0.00047397,31]
[322298072,1712940642313,-169.62,0.00047397,31]
[322298074,1712940642322,-500.0,0.00047397,31]
[322298076,1712940642331,-500.0,0.00047397,31]
[322298078,1712940642340,-346.3,0.00047397,31]
[322298080,1712940642349,-186.76,0.00047397,21]
[322298082,1712940642358,-500.0,0.00047397,31]
[322298084,1712940642368,-500.0,0.00047397,31]
[322298086,1712940642377,-500.0,0.00047397,31]
[322298088,1712940642386,-500.0,0.00047397,31]
[322298090,1712940642395,-500.0,0.00047397,31]
[322298092,1712940642404,-500.0,0.00047397,31]
[322298094,1712940642413,-500.0,0.00047397,31]
[322298096,1712940642423,-500.0,0.00047397,31]
[322298099,1712940642432,-543.86,0.00047397,2]
[322298101,1712940642441,-500.0,0.00047397,31]
[322298103,1712940642450,-500.0,0.00047397,31]
[322298105,1712940642462,-623.12,0.00047397,31]
[322298107,1712940642471,-511.47,0.00047397,31]
[322298109,1712940642480,-500.0,0.00047397,31]
[322298111,1712940642490,-500.0,0.00047397,31]
[322298113,1712940642499,-538.07840635,0.00047397,31]
[322298115,1712940642510,-500.0,0.00047397,31]
[322298117,1712940642519,-500.0,0.00047397,31]
[322298119,1712940642529,-402.24,0.00047397,31]
[322298121,1712940642539,-500.0,0.00047397,31]
[322298123,1712940642548,-500.0,0.00047397,31]
[322298127,1712940642558,-500.0,0.00047397,31]
[322298131,1712940642567,-546.74,0.00047397,31]
[322298135,1712940642577,-500.0,0.00047397,31]
[322298138,1712940642586,-234.85,0.00047397,31]
[322298141,1712940642595,-500.0,0.00047397,31]
[322298144,1712940642604,-500.0,0.00047397,31]
[322298146,1712940642613,-236.98,0.00047397,31]
[322298148,1712940642623,-500.0,0.00047397,31]
[322298150,1712940642632,-500.0,0.00047397,31]
[322298153,1712940642642,-500.0,0.00047397,31]
[322298156,1712940642651,-573.44,0.00047397,31]
[322298158,1712940642660,-500.0,0.00047397,31]
[322298160,1712940642669,-500.0,0.00047397,31]
[322298162,1712940642679,-500.0,0.00047397,31]
[322298164,1712940642689,-500.0,0.00047397,31]
[322298166,1712940642699,-642.73,0.00047397,31]
[322298167,1712940642709,-258.65655435,0.00047397,31]
[322298169,1712940642719,-151.05,0.00047397,31]
[322298171,1712940642728,-500.0,0.00047397,31]
[322298173,1712940642738,-488.77,0.00047397,31]
[322298175,1712940642747,-377.38,0.00047397,31]
[322298177,1712940642756,-254.09,0.00047397,31]
[322298179,1712940642765,-353.74,0.00047397,31]
[322298181,1712940642774,-500.0,0.00047397,31]
[322298183,1712940642783,-500.0,0.00047397,31]
[322298185,1712940642792,-557.42,0.00047397,31]
[322298187,1712940642802,-276.12,0.00047397,31]
[322298189,1712940642811,-500.0,0.00047397,31]
[322298191,1712940642820,-469.29,0.00047397,31]
[322298193,1712940642829,-500.0,0.00047397,31]
[322298195,1712940642838,-500.0,0.00047397,31]
[322298197,1712940642847,-272.06,0.00047397,31]
[322298199,1712940642857,-170.98,0.00047397,31]
[322298201,1712940642867,-448.93,0.00047397,31]
[322298203,1712940642877,-966.79,0.00047397,31]
[322298205,1712940642886,-500.0,0.00047397,31]
[322298207,1712940642895,-500.0,0.00047397,31]
[322298209,1712940642904,-500.0,0.00047397,31]
[322298211,1712940642914,-500.0,0.00047397,31]
[322298213,1712940642923,-500.0,0.00047397,31]
[322298215,1712940642933,-500.0,0.00047397,31]
[322298217,1712940642945,-500.0,0.00047397,31]
[322298219,1712940642954,-692.15,0.00047397,31]
[322298221,1712940642967,-1217.05,0.00047397,31]
[322298223,1712940642976,-627.92595862,0.00047498,4]
[322298226,1712940642986,-296.393635,0.000475,9]
[322298228,1712940642995,-2426.4242003,0.00047571,23]
[322298230,1712940643005,-361.0,0.00047607,30]
[322298232,1712940643014,-248.98461865,0.00047637,2]
[322298234,1712940643023,-197.9729492,0.00047669,4]
[322298236,1712940643033,-640.46092048,0.00047669,4]
[322298238,1712940643043,-260.47354147,0.00047669,4]
[322298240,1712940643053,-17784.91234367,0.0004767,30]
[322298242,1712940643062,-162.82191657,0.00047671,2]
[322298244,1712940643071,-500.0,0.00047671,31]
[322298246,1712940643080,-415.24,0.00047671,31]
[322298248,1712940643090,-500.0,0.00047671,31]
[322298250,1712940643099,-500.0,0.00047671,31]
[322298252,1712940643108,-282.91,0.00047671,31]
[322298254,1712940643117,-643.58,0.00047671,31]
[322298256,1712940643127,-500.0,0.00047671,31]
[322298258,1712940643136,-476.12,0.00047671,31]
[322298260,1712940643148,-500.0,0.00047671,31]
[322298262,1712940643157,-212.33,0.00047671,31]
[322298264,1712940643166,-686.84,0.00047671,31]
[322298265,1712940643175,-500.0,0.00047671,31]
[322298268,1712940643185,-500.0,0.00047671,31]
[322298270,1712940643194,-740.11,0.00047671,31]
[322298271,1712940643203,-623.06,0.00047671,31]
[322298272,1712940643218,-1167.23,0.00047671,31]
[322298273,1712940643227,-606.21,0.00047671,31]
[322298274,1712940643237,-500.0,0.00047671,31]
[322298275,1712940643247,-500.0,0.00047671,31]
[322298276,1712940643256,-500.0,0.00047671,31]
[322298277,1712940643265,-500.0,0.00047671,31]
[322298279,1712940643274,-500.0,0.00047671,31]
[322298281,1712940643284,-500.0,0.00047671,31]
[322298283,1712940643293,-500.0,0.00047671,31]
[322298285,1712940643302,-500.0,0.00047671,31]
[322298287,1712940643311,-204.54,0.00047671,31]
[322298289,1712940643321,-500.0,0.00047671,31]
[322298291,1712940643330,-293.46,0.00047671,31]
[322298293,1712940643341,-500.0,0.00047671,31]
[322298295,1712940643350,-500.0,0.00047671,31]
[322298297,1712940643359,-297.40694398,0.00047671,31]
[322298299,1712940643369,-500.0,0.00047671,31]
[322298301,1712940643378,-500.0,0.00047671,31]
[322298303,1712940643388,-500.0,0.00047671,31]
[322298305,1712940643397,-500.0,0.00047671,31]
[322298307,1712940643406,-500.0,0.00047671,31]
[322298309,1712940643415,-354.95,0.00047671,31]
[322298311,1712940643424,-421.39,0.00047671,31]
[322298313,1712940643434,-341.04,0.00047671,31]
[322298315,1712940643444,-500.0,0.00047671,31]
[322298317,1712940643454,-500.0,0.00047671,31]
[322298319,1712940643466,-500.0,0.00047671,31]
[322298321,1712940643475,-506.78,0.00047671,31]
[322298323,1712940643485,-642.73,0.00047671,31]
[322298325,1712940643495,-500.0,0.00047671,31]
[322298327,1712940643504,-500.0,0.00047671,31]
[322298329,1712940643514,-500.0,0.00047671,31]
[322298331,1712940643523,-500.0,0.00047671,31]
[322298333,1712940643532,-500.0,0.00047671,31]
[322298335,1712940643541,-500.0,0.00047671,31]
[322298337,1712940643551,-966.79,0.00047671,31]
[322298339,1712940643560,-500.0,0.00047671,31]
[322298341,1712940643569,-500.0,0.00047671,31]
[322298343,1712940643578,-500.0,0.00047671,31]
[322298345,1712940643587,-411.61,0.00047671,31]
[322298347,1712940643597,-500.0,0.00047671,31]
[322298349,1712940643606,-310.35,0.00047671,31]
[322298351,1712940643615,-692.15,0.00047671,31]
[322298353,1712940643624,-1217.05,0.00047671,31]
[322298355,1712940643633,-154.52750018,0.00047815,67]
[322298357,1712940643643,-2355.87794746,0.000479,2]
[322298359,1712940643653,-302.43,0.00047945,31]
[322298361,1712940643662,-491.32171456,0.00047945,31]
[322298363,1712940643672,-156.61,0.00047945,31]
[322298365,1712940643681,-500.0,0.00047945,31]
[322298367,1712940643690,-500.0,0.00047945,31]
[322298369,1712940643699,-686.84,0.00047945,31]
[322298371,1712940643710,-500.0,0.00047945,31]
[322298373,1712940643719,-500.0,0.00047945,31]
[322298375,1712940643728,-740.11,0.00047945,31]
[322298377,1712940643738,-1167.23,0.00047945,31]
[322298379,1712940643747,-283.29461304,0.00047945,31]
[322298381,1712940643756,-500.0,0.00047945,31]
[322298383,1712940643765,-428.24,0.00047945,31]
[322298385,1712940643775,-500.0,0.00047945,31]
[322298387,1712940643785,-500.0,0.00047945,31]
[322298389,1712940643795,-336.93228615,0.00047945,31]
[322298390,1712940643804,-185.42,0.00047945,31]
[322298393,1712940643814,-500.0,0.00047945,31]
[322298395,1712940643824,-500.0,0.00047945,31]
[322298397,1712940643834,-500.0,0.00047945,31]
[322298399,1712940643844,-158.15,0.00047945,31]
[322298401,1712940643853,-436.13,0.00047945,31]
[322298403,1712940643864,-500.0,0.00047945,31]
[322298405,1712940643878,-500.0,0.00047945,31]
[322298407,1712940643887,-500.0,0.00047945,31]
[322298409,1712940643897,-500.0,0.00047945,31]
[322298411,1712940643906,-500.0,0.00047945,31]
[322298413,1712940643917,-341.59960616,0.00047945,31]
[322298419,1712940643962,-500.0,0.00047945,31]
[322298421,1712940643971,-642.73,0.00047945,31]
[322298423,1712940643981,-500.0,0.00047945,31]
[322298425,1712940643990,-500.0,0.00047945,31]
[322298427,1712940644001,-500.0,0.00047945,31]
[322298429,1712940644010,-500.0,0.00047945,31]
[322298431,1712940644022,-500.0,0.00047945,31]
[322298433,1712940644032,-500.0,0.00047945,31]
[322298435,1712940644042,-966.79,0.00047945,31]
[322298437,1712940644051,-500.0,0.00047945,31]
[322298439,1712940644062,-304.64514772,0.00047945,31]
[322298441,1712940644071,-500.0,0.00047945,31]
[322298443,1712940644081,-500.0,0.00047945,31]
[322298445,1712940644090,-692.15,0.00047945,31]
[322298447,1712940644100,-1217.05,0.00047945,31]
[322298449,1712940644110,-201.81111111,0.00048,120]
[322298451,1712940644119,-150.0,0.00048,9]
[322298453,1712940644129,-306.0471612,0.00048088,30]
[322298455,1712940644138,-1757.60194628,0.00048088,30]
[322298457,1712940644148,-361.0,0.00048088,30]
[322298459,1712940644158,-668.16918383,0.00048088,30]
[322298461,1712940644167,-248.98461865,0.00048091,2]
[322298463,1712940644177,-161.96,0.00048219,31]
[322298465,1712940644186,-500.0,0.00048219,31]
[322298467,1712940644195,-686.84,0.00048219,31]
[322298469,1712940644204,-500.0,0.00048219,31]
[322298471,1712940644217,-500.0,0.00048219,31]
[322298473,1712940644226,-740.11,0.00048219,31]
[322298475,1712940644235,-1167.23,0.00048219,31]
[322298477,1712940644244,-500.0,0.00048219,31]
[322298479,1712940644254,-500.0,0.00048219,31]
[322298481,1712940644263,-500.0,0.00048219,31]
[322298483,1712940644272,-500.0,0.00048219,31]
[322298485,1712940644281,-500.0,0.00048219,31]
[322298487,1712940644291,-532.67,0.00048219,31]
[322298489,1712940644300,-500.0,0.00048219,31]
[322298491,1712940644309,-500.0,0.00048219,31]
[322298493,1712940644318,-500.0,0.00048219,31]
[322298495,1712940644327,-500.0,0.00048219,31]
[322298497,1712940644336,-500.0,0.00048219,31]
[322298499,1712940644345,-500.0,0.00048219,31]
[322298501,1712940644354,-642.73,0.00048219,31]
[322298503,1712940644364,-500.0,0.00048219,31]
[322298505,1712940644373,-500.0,0.00048219,31]
[322298507,1712940644382,-350.37,0.00048219,31]
[322298509,1712940644391,-500.0,0.00048219,31]
[322298511,1712940644401,-199.64,0.00048219,31]
[322298513,1712940644410,-500.0,0.00048219,31]
[322298515,1712940644419,-966.79,0.00048219,31]
[322298517,1712940644428,-500.0,0.00048219,31]
[322298520,1712940644437,-500.0,0.00048219,31]
[322298521,1712940644446,-500.0,0.00048219,31]
[322298523,1712940644456,-692.15,0.00048219,31]
[322298525,1712940644466,-1217.05,0.00048219,31]
[322298527,1712940644475,-2426.4242003,0.00048237,24]
[322298529,1712940644484,-548.15526676,0.00048493,31]
[322298531,1712940644493,-686.84,0.00048493,31]
[322298533,1712940644502,-500.0,0.00048493,31]
[322298535,1712940644511,-500.0,0.00048493,31]
[322298537,1712940644520,-740.11,0.00048493,31]
[322298539,1712940644529,-1167.23,0.00048493,31]
[322298541,1712940644538,-500.0,0.00048493,31]
[322298543,1712940644548,-492.36298829,0.00048493,31]
[322298545,1712940644558,-500.0,0.00048493,31]
[322298547,1712940644566,-500.0,0.00048493,31]
[322298549,1712940644576,-500.0,0.00048493,31]
[322298551,1712940644584,-500.0,0.00048493,31]
[322298553,1712940644595,-282.08,0.00048493,31]
[322298555,1712940644605,-500.0,0.00048493,31]
[322298557,1712940644614,-500.0,0.00048493,31]
[322298559,1712940644623,-500.0,0.00048493,31]